Workbook

Sheet Лист1
A1: Школа | C1: МБОУ Ирбизинская СОШ | F1: Утвердил: | G1: должность | H1: И.о. директора
A2: Типовое примерное меню приготавливаемых блюд | G2: фамилия | H2: Литвинчук Н. В.
A3: Возрастная категория | E3: 7-11 лет | G3: дата | H3: 12 | I3: 1 | J3: 2026
H4: день | I4: месяц | J4: год
A5: Неделя | B5: День недели | C5: Прием пищи | D5: Раздел меню | E5: Блюда | F5: Вес блюда, г | G5: Белки | H5: Жиры | I5: Углеводы | J5: Калорийность | K5: № рецептуры | L5: Цена
A6: 1 | B6: 1 | C6: Завтрак | D6: гор.блюдо | E6: Биточек из курицы, со сметанно-томатным соусом | F6: 130 | G6: 18 | H6: 5 | I6: 15 | J6: 177 | K6: 54-23м | L6: 44.00
D7: хлеб | E7: Хлеб ржаной | F7: 15 | G7: 1 | H7: 0 | I7: 5 | J7: 26 | K7: Пром. | L7: 1.57
D8: гор.напиток | E8: Какао с молоком | F8: 200 | G8: 5 | H8: 4 | I8: 13 | J8: 100 | K8: 54-21гн | L8: 17.00
D9: хлеб | E9: хлеб пшеничный йодированный | F9: 15 | G9: 1 | H9: 0 | I9: 7 | J9: 35 | K9: Пром. | L9: 1.12
D10: фрукты
D11: закуска | E11: Огурец в нарезке | F11: 60 | G11: 1 | H11: 0 | I11: 2 | J11: 9 | K11: 54-2з | L11: 12.00
D12: гор.блюдо | E12: Макароны отварные | F12: 150 | G12: 5 | H12: 5 | I12: 33 | J12: 197 | K12: 54-1г | L12: 5.30
D13: итого | F13: =SUM(F6:F12) -> 570 | G13: =SUM(G6:G12) -> 31 | H13: 14 | I13: 74 | J13: 544 | L13: =SUM(L6:L12) -> 80.99
A14: =A6 -> 1 | B14: =B6 -> 1 | C14: Обед | D14: закуска
D15: 1 блюдо
D16: 2 блюдо
D17: гарнир
D18: напиток
D19: хлеб бел.
D20: хлеб черн.
D23: итого | F23: =SUM(F14:F22) -> 0 | G23: =SUM(G14:G22) -> 0 | H23: 0 | I23: 0 | J23: 0 | L23: =SUM(L14:L22) -> 0.00
A24: =A6 -> 1 | B24: =B6 -> 1 | C24: Итого за день: | F24: =F13+F23 -> 570 | G24: =G13+G23 -> 31 | H24: 14 | I24: 74 | J24: 544 | L24: =L13+L23 -> 80.99
A25: 1 | B25: 2 | C25: Завтрак | D25: гор.блюдо | E25: Рыба, запеченная с сыром и луком | F25: 100 | G25: 16 | H25: 11 | I25: 3 | J25: 175 | K25: 54-12р | L25: 46.00
D26: хлеб | E26: хлеб пшеничный йодированный | F26: 15 | G26: 1 | H26: 0 | I26: 7 | J26: 35 | K26: Пром. | L26: 1.12
D27: гор.напиток
D28: хлеб | E28: Хлеб ржаной | F28: 15 | G28: 1 | H28: 0 | I28: 5 | J28: 26 | K28: Пром. | L28: 1.57
D29: фрукты
D30: закуска | E30: Салат "Пёстрый" | F30: 60 | G30: 1 | H30: 3 | I30: 7 | J30: 60 | K30: 21 | L30: 10.00
D31: гор.блюдо | E31: Картофельное пюре | F31: 180 | G31: 4 | H31: 6 | I31: 24 | J31: 167 | K31: 54-11г | L31: 9.00
D32: напиток | E32: Сок абрикосовый | F32: 200 | G32: 1 | H32: 0 | I32: 25 | J32: 106 | K32: Пром. | L32: 14.00
D33: итого | F33: =SUM(F25:F32) -> 570 | G33: =SUM(G25:G32) -> 24 | H33: 21 | I33: 72 | J33: 569 | L33: =SUM(L25:L32) -> 81.69
A34: =A25 -> 1 | B34: =B25 -> 2 | C34: Обед | D34: закуска
D35: 1 блюдо
D36: 2 блюдо
D37: гарнир
D38: напиток
D39: хлеб бел.
D40: хлеб черн.
D43: итого | F43: =SUM(F34:F42) -> 0 | G43: =SUM(G34:G42) -> 0 | H43: =SUM(H34:H42) -> 0 | I43: =SUM(I34:I42) -> 0 | J43: =SUM(J34:J42) -> 0 | L43: 0.00
A44: =A25 -> 1 | B44: =B25 -> 2 | C44: Итого за день: | F44: =F33+F43 -> 570 | G44: =G33+G43 -> 24 | H44: =H33+H43 -> 21 | I44: =I33+I43 -> 72 | J44: =J33+J43 -> 569 | L44: 81.69
A45: 1 | B45: 3 | C45: Завтрак | D45: гор.блюдо | E45: Солянка домашняя | F45: 200 | G45: 9 | H45: 10 | I45: 3 | J45: 135 | K45: 54-33с | L45: 12.00
D46: закуска | E46: Винегрет с растительным маслом | F46: 60 | G46: 1 | H46: 5 | I46: 4 | J46: 67 | K46: 54-16з | L46: 10.00
D47: гор.напиток | E47: Чай с сахаром | F47: 180 | G47: 0 | H47: 0 | I47: 6 | J47: 24 | K47: 54-2гн | L47: 3.00
D48: хлеб | E48: хлеб пшеничный йодированный | F48: 15 | G48: 1 | H48: 0 | I48: 7 | J48: 35 | K48: Пром. | L48: 1.12
D49: фрукты | E49: Апельсин | F49: 100 | G49: 1 | H49: 0 | I49: 8 | J49: 38 | K49: Пром. | L49: 18.50
D50: хлеб
D51: гор.блюдо | E51: куриные кусочки, запеченные с сыром | F51: 90 | G51: 15 | H51: 17 | I51: 9 | J51: 251 | K51: 290 | L51: 37.00
D52: напиток
D53: итого | F53: =SUM(F45:F52) -> 645 | G53: =SUM(G45:G52) -> 27 | H53: 32 | I53: 38 | J53: 550 | L53: =SUM(L45:L52) -> 81.62
A54: =A45 -> 1 | B54: =B45 -> 3 | C54: Обед | D54: закуска
D55: 1 блюдо
D56: 2 блюдо
D57: гарнир
D58: напиток
D59: хлеб бел.
D60: хлеб черн.
D63: итого | F63: =SUM(F54:F62) -> 0 | G63: =SUM(G54:G62) -> 0 | H63: =SUM(H54:H62) -> 0 | I63: =SUM(I54:I62) -> 0 | J63: =SUM(J54:J62) -> 0 | L63: 0.00
A64: =A45 -> 1 | B64: =B45 -> 3 | C64: Итого за день: | F64: =F53+F63 -> 645 | G64: =G53+G63 -> 27 | H64: =H53+H63 -> 32 | I64: =I53+I63 -> 38 | J64: =J53+J63 -> 550 | L64: 81.62
A65: 1 | B65: 4 | C65: Завтрак | D65: гор.блюдо | E65: Каша жидкая молочная рисовая | F65: 250 | G65: 7 | H65: 7 | I65: 36 | J65: 231 | K65: 54-25.1к | L65: 30.00
D66: хлеб | E66: Хлеб ржаной | F66: 15 | G66: 1 | H66: 0 | I66: 5 | J66: 26 | K66: Пром. | L66: 1.57
D67: гор.напиток | E67: Кофейный напиток с молоком | F67: 200 | G67: 4 | H67: 3 | I67: 11 | J67: 86 | K67: 54-23гн | L67: 15.00
D68: хлеб | E68: хлеб пшеничный йодированный | F68: 15 | G68: 1 | H68: 0 | I68: 7 | J68: 35 | K68: Пром. | L68: 1.12
D69: фрукты
D70: гор.блюдо | E70: Яйцо вареное | F70: 40 | G70: 5 | H70: 4 | I70: 0 | J70: 57 | K70: 54-6о | L70: 8.40
D71: хлеб | E71: Бутерброд горячий с сыром | F71: 45 | G71: 6 | H71: 7 | I71: 10 | J71: 130 | K71: 10 | L71: 25.00
D72: итого | F72: =SUM(F65:F71) -> 565 | G72: =SUM(G65:G71) -> 23 | H72: =SUM(H65:H71) -> 21 | I72: =SUM(I65:I71) -> 70 | J72: =SUM(J65:J71) -> 564 | L72: 81.09
A73: =A65 -> 1 | B73: =B65 -> 4 | C73: Обед | D73: закуска
D74: 1 блюдо
D75: 2 блюдо
D76: гарнир
D77: напиток
D78: хлеб бел.
D79: хлеб черн.
D82: итого | F82: =SUM(F73:F81) -> 0 | G82: =SUM(G73:G81) -> 0 | H82: =SUM(H73:H81) -> 0 | I82: =SUM(I73:I81) -> 0 | J82: =SUM(J73:J81) -> 0 | L82: 0.00
A83: =A65 -> 1 | B83: =B65 -> 4 | C83: Итого за день: | F83: =F72+F82 -> 565 | G83: =G72+G82 -> 23 | H83: =H72+H82 -> 21 | I83: =I72+I82 -> 70 | J83: =J72+J82 -> 564 | L83: 81.09
A84: 1 | B84: 5 | C84: Завтрак | D84: гор.блюдо | E84: Рагу из курицы | F84: 250 | G84: 26 | H84: 9 | I84: 22 | J84: 272 | K84: 54-22м | L84: 56.30
D85: закуска
D86: гор.напиток | E86: Чай с лимоном и сахаром | F86: 200 | G86: 0 | H86: 0 | I86: 7 | J86: 28 | K86: 54-3гн | L86: 3.00
D87: хлеб | E87: хлеб пшеничный йодированный | F87: 15 | G87: 1 | H87: 0 | I87: 7 | J87: 35 | K87: Пром. | L87: 1.12
D88: фрукты
D89: хлеб | E89: Хлеб ржаной | F89: 15 | G89: 1 | H89: 0 | I89: 5 | J89: 26 | K89: Пром. | L89: 1.57
D90: сладкое | E90: манник со сгущенным молоком | F90: 95 | G90: 6 | H90: 6 | I90: 30 | J90: 195 | K90: № 2-546 | L90: 19.00
D91: итого | F91: =SUM(F84:F90) -> 575 | G91: =SUM(G84:G90) -> 35 | H91: 15 | I91: 71 | J91: 556 | L91: =SUM(L84:L90) -> 80.99
A92: =A84 -> 1 | B92: =B84 -> 5 | C92: Обед | D92: закуска
D93: 1 блюдо
D94: 2 блюдо
D95: гарнир
D96: напиток
D97: хлеб бел.
D98: хлеб черн.
D101: итого | F101: =SUM(F92:F100) -> 0 | G101: =SUM(G92:G100) -> 0 | H101: =SUM(H92:H100) -> 0 | I101: =SUM(I92:I100) -> 0 | J101: =SUM(J92:J100) -> 0 | L101: 0.00
A102: =A84 -> 1 | B102: =B84 -> 5 | C102: Итого за день: | F102: =F91+F101 -> 575 | G102: =G91+G101 -> 35 | H102: =H91+H101 -> 15 | I102: =I91+I101 -> 71 | J102: =J91+J101 -> 556 | L102: 80.99
A103: 2 | B103: 1 | C103: Завтрак | D103: гор.блюдо | E103: Пельмени | F103: 220 | G103: 19 | H103: 29 | I103: 52 | J103: 544 | K103: П/Ф | L103: 50.00
D104: напиток | E104: Компот из свежих яблок | F104: 200 | G104: 0 | H104: 0 | I104: 10 | J104: 42 | K104: 54-32хн | L104: 11.00
D105: гор.напиток
D106: хлеб | E106: хлеб пшеничный йодированный | F106: 15 | G106: 1 | H106: 0 | I106: 7 | J106: 35 | K106: Пром. | L106: 1.12
D107: фрукты
D108: закуска | E108: салат из свежих огурцов | F108: 60 | G108: 0 | H108: 3 | I108: 1 | J108: 34 | K108: 9 | L108: 18.00
D109: хлеб | E109: Хлеб ржаной | F109: 10 | G109: 1 | H109: 0 | I109: 3 | J109: 17 | K109: Пром. | L109: 1.57
D110: итого | F110: =SUM(F103:F109) -> 505 | G110: =SUM(G103:G109) -> 21 | H110: 32 | I110: 74 | J110: 672 | L110: =SUM(L103:L109) -> 81.69
A111: =A103 -> 2 | B111: =B103 -> 1 | C111: Обед | D111: закуска
D112: 1 блюдо
D113: 2 блюдо
D114: гарнир
D115: напиток
D116: хлеб бел.
D117: хлеб черн.
D120: итого | F120: =SUM(F111:F119) -> 0 | G120: =SUM(G111:G119) -> 0 | H120: 0 | I120: 0 | J120: 0 | L120: =SUM(L111:L119) -> 0.00
A121: =A103 -> 2 | B121: =B103 -> 1 | C121: Итого за день: | F121: =F110+F120 -> 505 | G121: =G110+G120 -> 21 | H121: =H110+H120 -> 32 | I121: =I110+I120 -> 74 | J121: =J110+J120 -> 672 | L121: 81.69
A122: 2 | B122: 2 | C122: Завтрак | D122: гор.блюдо | E122: Куриные палочки в панировке, с соусом красным основном | F122: 140 | G122: 24 | H122: 4 | I122: 13 | J122: 182 | K122: ДП-4м | L122: 53.00
D123: гор.блюдо | E123: Макароны отварные | F123: 150 | G123: 5 | H123: 5 | I123: 33 | J123: 197 | K123: 54-1г | L123: 5.30
D124: гор.напиток
D125: хлеб | E125: хлеб пшеничный йодированный | F125: 15 | G125: 1 | H125: 0 | I125: 7 | J125: 35 | K125: Пром. | L125: 1.12
D126: фрукты
D127: закуска | E127: салат "Здоровье" | F127: 60 | G127: 1 | H127: 2 | I127: 6 | J127: 42 | K127: 25 | L127: 11.00
D128: напиток | E128: Компот из смеси сухофруктов | F128: 200 | G128: 1 | H128: 0 | I128: 20 | J128: 81 | K128: 54-1хн | L128: 9.00
D129: хлеб | E129: Хлеб ржаной | F129: 15 | G129: 1 | H129: 0 | I129: 5 | J129: 26 | K129: Пром. | L129: 1.57
D130: итого | F130: =SUM(F122:F129) -> 580 | G130: =SUM(G122:G129) -> 32.8 | H130: =SUM(H122:H129) -> 10.6 | I130: =SUM(I122:I129) -> 84.1 | J130: =SUM(J122:J129) -> 562.6 | L130: =SUM(L122:L129) -> 80.99
A131: =A122 -> 2 | B131: =B122 -> 2 | C131: Обед | D131: закуска
D132: 1 блюдо
D133: 2 блюдо
D134: гарнир
D135: напиток
D136: хлеб бел.
D137: хлеб черн.
D140: итого | F140: =SUM(F131:F139) -> 0 | G140: =SUM(G131:G139) -> 0 | H140: 0 | I140: 0 | J140: 0 | L140: =SUM(L131:L139) -> 0.00
A141: =A122 -> 2 | B141: =B122 -> 2 | C141: Итого за день: | F141: =F130+F140 -> 580 | G141: =G130+G140 -> 33 | H141: =H130+H140 -> 11 | I141: =I130+I140 -> 84 | J141: =J130+J140 -> 563 | L141: 80.99
A142: 2 | B142: 3 | C142: Завтрак | D142: гор.блюдо | E142: Рагу из овощей | F142: 150 | G142: 3 | H142: 8 | I142: 14 | J142: 133 | K142: 54-9г | L142: 9.00
D143: закуска | E143: Кукуруза сахарная | F143: 60 | G143: 1 | H143: 0 | I143: 6 | J143: 31 | K143: 54-21з | L143: 5.00
D144: гор.напиток | E144: Чай с лимоном и сахаром | F144: 200 | G144: 0 | H144: 0 | I144: 7 | J144: 28 | K144: 54-3гн | L144: 3.00
D145: хлеб | E145: Хлеб ржаной | F145: 15 | G145: 1 | H145: 0 | I145: 5 | J145: 26 | K145: Пром. | L145: 1.57
D146: фрукты
D147: гор.блюдо | E147: Котлеты Домашние | F147: 90 | G147: 12 | H147: 9 | I147: 7 | J147: 157 | K147: П/Ф | L147: 45.00
D148: хлеб | E148: бутерброд с джемом или повидлом | F148: 55 | G148: 2 | H148: 5 | I148: 30 | J148: 170 | K148: 2 | L148: 18.00
D149: напиток
D150: итого | F150: =SUM(F142:F149) -> 570 | G150: =SUM(G142:G149) -> 19 | H150: 22 | I150: 68 | J150: 545 | L150: =SUM(L142:L149) -> 81.57
A151: =A142 -> 2 | B151: =B142 -> 3 | C151: Обед | D151: закуска
D152: 1 блюдо
D153: 2 блюдо
D154: гарнир
D155: напиток
D156: хлеб бел.
D157: хлеб черн.
D160: итого | F160: =SUM(F151:F159) -> 0 | G160: =SUM(G151:G159) -> 0 | H160: 0 | I160: 0 | J160: 0 | L160: =SUM(L151:L159) -> 0.00
A161: =A142 -> 2 | B161: =B142 -> 3 | C161: Итого за день: | F161: =F150+F160 -> 570 | G161: =G150+G160 -> 19 | H161: =H150+H160 -> 22 | I161: =I150+I160 -> 68 | J161: =J150+J160 -> 545 | L161: 81.57
A162: 2 | B162: 4 | C162: Завтрак | D162: гор.блюдо | E162: Картофель, запеченный в сметанном соусе | F162: 250 | G162: 6 | H162: 9 | I162: 32 | J162: 228 | K162: 151 | L162: 38.00
D163: гор.блюдо
D164: гор.напиток | E164: Какао с молоком | F164: 200 | G164: 5 | H164: 4 | I164: 13 | J164: 100 | K164: 54-21гн | L164: 17.00
D165: хлеб | E165: бутерброд с маслом | F165: 40 | G165: 2 | H165: 8 | I165: 16 | J165: 145 | K165: 1 | L165: 15.00
D166: фрукты
D167: хлеб | E167: хлеб пшеничный йодированный | F167: 15 | G167: 1 | H167: 0 | I167: 7 | J167: 35 | K167: Пром. | L167: 1.12
D168: закуска | E168: Винегрет с растительным маслом | F168: 60 | G168: 1 | H168: 5 | I168: 4 | J168: 67 | K168: 54-16з | L168: 9.00
D169: хлеб | E169: Хлеб ржаной | F169: 15 | G169: 1 | H169: 0 | I169: 5 | J169: 26 | K169: Пром. | L169: 1.57
D170: итого | F170: =SUM(F162:F169) -> 580 | G170: =SUM(G162:G169) -> 16 | H170: 26 | I170: 77 | J170: 601 | L170: =L162+L163+L164+L165+L167+L168+L169 -> 81.69
A171: =A162 -> 2 | B171: =B162 -> 4 | C171: Обед | D171: закуска
D172: 1 блюдо
D173: 2 блюдо
D174: гарнир
D175: напиток
D176: хлеб бел.
D177: хлеб черн.
D180: итого | F180: =SUM(F171:F179) -> 0 | G180: =SUM(G171:G179) -> 0 | H180: 0 | I180: 0 | J180: 0 | L180: =SUM(L171:L179) -> 0.00
A181: =A171 -> 2 | B181: =B162 -> 4 | C181: Итого за день: | F181: =F170+F180 -> 580 | G181: =G170+G180 -> 16 | H181: =H170+H180 -> 26 | I181: =I170+I180 -> 77 | J181: =J170+J180 -> 601 | L181: =L170+L180 -> 81.69
A182: 2 | B182: 5 | C182: Завтрак | D182: гор.блюдо | E182: Плов из отварной говядины | F182: 220 | G182: 17 | H182: 16 | I182: 42 | J182: 383 | K182: 54-11м | L182: 49.00
D183: гор.блюдо
D184: гор.напиток | E184: Чай с сахаром | F184: 200 | G184: 0 | H184: 0 | I184: 6 | J184: 27 | K184: 54-2гн | L184: 3.00
D185: хлеб | E185: хлеб пшеничный йодированный | F185: 15 | G185: 1 | H185: 0 | I185: 7 | J185: 35 | K185: Пром. | L185: 1.12
D186: фрукты | E186: Яблоко | F186: 100 | G186: 0 | H186: 0 | I186: 10 | J186: 44 | K186: Пром. | L186: 16.50
D187: напиток
D188: закуска | E188: Салат картофельный с морковью и зеленым горошком | F188: 60 | G188: 2 | H188: 4 | I188: 6 | J188: 70 | K188: 54-34з | L188: 7.00
D189: хлеб | E189: Хлеб ржаной | F189: 15 | G189: 1 | H189: 0 | I189: 5 | J189: 26 | K189: Пром. | L189: 1.57
D190: итого | F190: =SUM(F182:F189) -> 610 | G190: =SUM(G182:G189) -> 21 | H190: 21 | I190: 77 | J190: 585 | L190: =SUM(L182:L189) -> 78.19
A191: =A182 -> 2 | B191: =B182 -> 5 | C191: Обед | D191: закуска
D192: 1 блюдо
D193: 2 блюдо
D194: гарнир
D195: напиток
D196: хлеб бел.
D197: хлеб черн.
D200: итого | F200: =SUM(F191:F199) -> 0 | G200: =SUM(G191:G199) -> 0 | H200: 0 | I200: 0 | J200: 0 | L200: =SUM(L191:L199) -> 0.00
A201: =A182 -> 2 | B201: =B182 -> 5 | C201: Итого за день: | F201: =F190+F200 -> 610 | G201: =G190+G200 -> 21 | H201: =H190+H200 -> 21 | I201: =I190+I200 -> 77 | J201: =J190+J200 -> 585 | L201: =L190+L200 -> 78.19
C202: Среднее значение за период: | F202: =(F24+F44+F64+F83+F102+F121+F141+F161+F181+F201)/(IF(F24=0,0,1)+IF(F44=0,0,1)+IF(F64=0,0,1)+IF(F83=0,0,1)+IF(F102=0,0,1)+IF(F121=0,0,1)+IF(F141=0,0,1)+IF(F161=0,0,1)+IF(F181=0,0,1)+IF(F201=0,0,1)) -> 577 | G202: =(G24+G44+G64+G83+G102+G121+G141+G161+G181+G201)/(IF(G24=0,0,1)+IF(G44=0,0,1)+IF(G64=0,0,1)+IF(G83=0,0,1)+IF(G102=0,0,1)+IF(G121=0,0,1)+IF(G141=0,0,1)+IF(G161=0,0,1)+IF(G181=0,0,1)+IF(G201=0,0,1)) -> 25 | H202: =(H24+H44+H64+H83+H102+H121+H141+H161+H181+H201)/(IF(H24=0,0,1)+IF(H44=0,0,1)+IF(H64=0,0,1)+IF(H83=0,0,1)+IF(H102=0,0,1)+IF(H121=0,0,1)+IF(H141=0,0,1)+IF(H161=0,0,1)+IF(H181=0,0,1)+IF(H201=0,0,1)) -> 21 | I202: =(I24+I44+I64+I83+I102+I121+I141+I161+I181+I201)/(IF(I24=0,0,1)+IF(I44=0,0,1)+IF(I64=0,0,1)+IF(I83=0,0,1)+IF(I102=0,0,1)+IF(I121=0,0,1)+IF(I141=0,0,1)+IF(I161=0,0,1)+IF(I181=0,0,1)+IF(I201=0,0,1)) -> 70 | J202: =(J24+J44+J64+J83+J102+J121+J141+J161+J181+J201)/(IF(J24=0,0,1)+IF(J44=0,0,1)+IF(J64=0,0,1)+IF(J83=0,0,1)+IF(J102=0,0,1)+IF(J121=0,0,1)+IF(J141=0,0,1)+IF(J161=0,0,1)+IF(J181=0,0,1)+IF(J201=0,0,1)) -> 575 | L202: =(L24+L44+L64+L83+L102+L121+L141+L161+L181+L201)/(IF(L24=0,0,1)+IF(L44=0,0,1)+IF(L64=0,0,1)+IF(L83=0,0,1)+IF(L102=0,0,1)+IF(L121=0,0,1)+IF(L141=0,0,1)+IF(L161=0,0,1)+IF(L181=0,0,1)+IF(L201=0,0,1)) -> 81.051
